[Event "Late-Titled-Tuesday-Blitz-April-23-2024"]
[Site "Chess.com"]
[Date "2024.04.23"]
[Round "8"]
[White "Cambek64"]
[Black "nindjaxx8"]
[Result "0-1"]
[WhiteElo "2531"]
[BlackElo "2654"]
[TimeControl "180+1"]
[EndTime "15:29:36 PDT"]
[Termination "nindjaxx8 won by checkmate"]

1. b3 {[%clk 0:03:00.9]} 1... d5 {[%clk 0:02:59.8]} 2. Bb2 {[%clk 0:03:01.4]}
2... Nf6 {[%clk 0:03:00.5]} 3. e3 {[%clk 0:03:01.8]} 3... e6 {[%clk 0:03:00.8]}
4. f4 {[%clk 0:03:00.6]} 4... Be7 {[%clk 0:03:01.3]} 5. Nf3 {[%clk 0:03:00.8]}
5... O-O {[%clk 0:03:01.9]} 6. Bd3 {[%clk 0:02:58.8]} 6... b6 {[%clk 0:03:02.2]}
7. Qe2 {[%clk 0:02:56.4]} 7... Bb7 {[%clk 0:03:02.2]} 8. O-O {[%clk 0:02:55.5]}
8... Nbd7 {[%clk 0:03:02.2]} 9. Ne5 {[%clk 0:02:55.2]} 9... Rc8 {[%clk
0:03:02.3]} 10. Rf3 {[%clk 0:02:52.1]} 10... Ne4 {[%clk 0:02:57.9]} 11. Rh3
{[%clk 0:02:51.7]} 11... Ndf6 {[%clk 0:02:54.5]} 12. g4 {[%clk 0:02:50.9]} 12...
Nd7 {[%clk 0:02:45.1]} 13. g5 {[%clk 0:02:41.6]} 13... g6 {[%clk 0:02:44.6]} 14.
Qg4 {[%clk 0:02:16.2]} 14... Nxe5 {[%clk 0:02:14.6]} 15. Bxe5 {[%clk 0:02:13]}
15... f5 {[%clk 0:02:05.7]} 16. gxf6 {[%clk 0:02:10.2]} 16... Bxf6 {[%clk
0:02:04.2]} 17. Qxe6+ {[%clk 0:02:09.5]} 17... Rf7 {[%clk 0:02:04.5]} 18. Rxh7
{[%clk 0:01:53.7]} 18... Qf8 {[%clk 0:01:41.5]} 19. Rxf7 {[%clk 0:01:51.7]}
19... Qxf7 {[%clk 0:01:41.7]} 20. Qxf7+ {[%clk 0:01:49.3]} 20... Kxf7 {[%clk
0:01:41.8]} 21. Bxf6 {[%clk 0:01:37.9]} 21... Kxf6 {[%clk 0:01:41]} 22. Nc3
{[%clk 0:01:30.1]} 22... Nxd2 {[%clk 0:01:37.7]} 23. Kf2 {[%clk 0:01:27.3]}
23... c5 {[%clk 0:01:15.2]} 24. Rd1 {[%clk 0:01:24.7]} 24... d4 {[%clk
0:01:15.3]} 25. Rxd2 {[%clk 0:01:17.9]} 25... dxc3 {[%clk 0:01:14.7]} 26. Rd1
{[%clk 0:01:16.3]} 26... Rh8 {[%clk 0:01:13.4]} 27. Kg3 {[%clk 0:01:14.8]} 27...
Bc8 {[%clk 0:01:10.6]} 28. Bf1 {[%clk 0:01:08.3]} 28... Re8 {[%clk 0:01:05.3]}
29. Re1 {[%clk 0:01:05]} 29... Bf5 {[%clk 0:01:04.5]} 30. Bd3 {[%clk 0:01:05]}
30... Bxd3 {[%clk 0:01:01.8]} 31. cxd3 {[%clk 0:01:05.1]} 31... Rd8 {[%clk
0:01:02.6]} 32. Rd1 {[%clk 0:00:39.4]} 32... c2 {[%clk 0:01:02.5]} 33. Rc1
{[%clk 0:00:38.5]} 33... Rxd3 {[%clk 0:01:03.1]} 34. Rxc2 {[%clk 0:00:39]} 34...
Rxe3+ {[%clk 0:01:03.5]} 35. Kg4 {[%clk 0:00:38.4]} 35... Rd3 {[%clk 0:00:53]}
36. h4 {[%clk 0:00:38.4]} 36... Rd1 {[%clk 0:00:51.9]} 37. Re2 {[%clk
0:00:27.2]} 37... Rg1+ {[%clk 0:00:32.2]} 38. Kf3 {[%clk 0:00:25.2]} 38... Rf1+
{[%clk 0:00:32.7]} 39. Kg4 {[%clk 0:00:25.2]} 39... Rg1+ {[%clk 0:00:32.9]} 40.
Kf3 {[%clk 0:00:24.8]} 40... Rd1 {[%clk 0:00:29.7]} 41. Kg4 {[%clk 0:00:23.3]}
41... Rd3 {[%clk 0:00:26.7]} 42. h5 {[%clk 0:00:19.6]} 42... gxh5+ {[%clk
0:00:25.9]} 43. Kxh5 {[%clk 0:00:19.6]} 43... Kf5 {[%clk 0:00:25.3]} 44. Re7
{[%clk 0:00:18.2]} 44... Rh3# {[%clk 0:00:25]} 0-1

[Event "Late-Titled-Tuesday-Blitz-April-23-2024"]
[Site "Chess.com"]
[Date "2024.04.23"]
[Round "8"]
[White "DanielDardha2005"]
[Black "Airquake"]
[Result "1-0"]
[WhiteElo "2855"]
[BlackElo "2670"]
[TimeControl "180+1"]
[EndTime "15:29:37 PDT"]
[Termination "DanielDardha2005 won on time"]

1. d4 {[%clk 0:03:00.9]} 1... Nf6 {[%clk 0:02:58.3]} 2. Bg5 {[%clk 0:02:58.7]}
2... Ne4 {[%clk 0:02:57.4]} 3. h4 {[%clk 0:02:58.3]} 3... h6 {[%clk 0:02:47.1]}
4. Bf4 {[%clk 0:02:57.6]} 4... c5 {[%clk 0:02:45.6]} 5. dxc5 {[%clk 0:02:54.5]}
5... Qa5+ {[%clk 0:02:44]} 6. Nd2 {[%clk 0:02:52.9]} 6... Nc6 {[%clk 0:02:34.9]}
7. c3 {[%clk 0:02:50.9]} 7... Nxd2 {[%clk 0:02:33.7]} 8. b4 {[%clk 0:02:50]}
8... Qa3 {[%clk 0:02:15.1]} 9. Qxd2 {[%clk 0:02:49.7]} 9... g6 {[%clk
0:02:02.2]} 10. Qc1 {[%clk 0:02:42.5]} 10... Qa4 {[%clk 0:01:49.9]} 11. e3
{[%clk 0:02:34.7]} 11... Bg7 {[%clk 0:01:49]} 12. Nf3 {[%clk 0:02:22.2]} 12...
d6 {[%clk 0:01:06.4]} 13. cxd6 {[%clk 0:02:18.8]} 13... exd6 {[%clk 0:01:06.3]}
14. Bc4 {[%clk 0:02:10.7]} 14... O-O {[%clk 0:00:49]} 15. Bb3 {[%clk 0:02:10.1]}
15... Qb5 {[%clk 0:00:48.8]} 16. Nd4 {[%clk 0:01:51.6]} 16... Nxd4 {[%clk
0:00:48]} 17. cxd4 {[%clk 0:01:52.5]} 17... Qxb4+ {[%clk 0:00:47.6]} 18. Qd2
{[%clk 0:01:51.6]} 18... Qb6 {[%clk 0:00:47.5]} 19. O-O {[%clk 0:01:49.5]} 19...
Bd7 {[%clk 0:00:45]} 20. Rab1 {[%clk 0:01:48.7]} 20... Qa6 {[%clk 0:00:43.6]}
21. Rfc1 {[%clk 0:01:47.8]} 21... Rac8 {[%clk 0:00:43.2]} 22. d5 {[%clk
0:01:48.7]} 22... Bf5 {[%clk 0:00:41.2]} 23. Rxc8 {[%clk 0:01:38.8]} 23... Rxc8
{[%clk 0:00:36.3]} 24. Rc1 {[%clk 0:01:38.5]} 24... Rxc1+ {[%clk 0:00:33.1]} 25.
Qxc1 {[%clk 0:01:39.4]} 25... Qb6 {[%clk 0:00:33.3]} 26. Qa3 {[%clk 0:01:33.3]}
26... Bf8 {[%clk 0:00:31.7]} 27. Qa4 {[%clk 0:01:23.6]} 27... Qc5 {[%clk
0:00:24.1]} 28. Kh2 {[%clk 0:01:20.9]} 28... a6 {[%clk 0:00:22.7]} 29. Qe8
{[%clk 0:01:19.7]} 29... Qc8 {[%clk 0:00:17.8]} 30. Qxc8 {[%clk 0:01:03.6]}
30... Bxc8 {[%clk 0:00:18.7]} 31. a4 {[%clk 0:01:03.4]} 31... b5 {[%clk
0:00:15.7]} 32. axb5 {[%clk 0:01:04.3]} 32... axb5 {[%clk 0:00:16.6]} 33. e4
{[%clk 0:01:04.2]} 33... Kg7 {[%clk 0:00:15.3]} 34. Bd2 {[%clk 0:01:03]} 34...
Be7 {[%clk 0:00:14.9]} 35. Kg3 {[%clk 0:01:00.7]} 35... Bf6 {[%clk 0:00:14.6]}
36. Bb4 {[%clk 0:01:01.2]} 36... Be7 {[%clk 0:00:10]} 37. e5 {[%clk 0:01:01.5]}
37... Bd7 {[%clk 0:00:03.1]} 38. f4 {[%clk 0:00:47.8]} 38... Kf8 {[%clk
0:00:02.7]} 39. exd6 {[%clk 0:00:45.3]} 39... Bf6 {[%clk 0:00:03.1]} 40. Bd1
{[%clk 0:00:42.4]} 40... h5 {[%clk 0:00:02.3]} 41. Be2 {[%clk 0:00:40]} 41...
Ke8 {[%clk 0:00:02.7]} 42. Bd3 {[%clk 0:00:39.9]} 42... Kd8 {[%clk 0:00:02.3]}
43. Kf3 {[%clk 0:00:38.7]} 43... Kc8 {[%clk 0:00:02.2]} 44. g3 {[%clk
0:00:37.4]} 44... Bd8 {[%clk 0:00:02.3]} 45. f5 {[%clk 0:00:32.9]} 45... gxf5
{[%clk 0:00:01.2]} 46. Kf4 {[%clk 0:00:33]} 1-0

[Event "Late-Titled-Tuesday-Blitz-April-23-2024"]
[Site "Chess.com"]
[Date "2024.04.23"]
[Round "8"]
[White "contrerasfiorella"]
[Black "Heliosis11"]
[Result "1-0"]
[WhiteElo "2241"]
[BlackElo "2383"]
[TimeControl "180+1"]
[EndTime "15:29:37 PDT"]
[Termination "contrerasfiorella won on time"]

1. e4 {[%clk 0:03:00.9]} 1... c5 {[%clk 0:02:58.3]} 2. Nc3 {[%clk 0:03:00.4]}
2... e6 {[%clk 0:02:58.3]} 3. g3 {[%clk 0:02:58.2]} 3... d5 {[%clk 0:02:55.2]}
4. exd5 {[%clk 0:02:57.4]} 4... exd5 {[%clk 0:02:54.8]} 5. d4 {[%clk 0:02:58]}
5... Nf6 {[%clk 0:02:51.5]} 6. Bg2 {[%clk 0:02:41.9]} 6... cxd4 {[%clk 0:02:45]}
7. Qxd4 {[%clk 0:02:41.3]} 7... Nc6 {[%clk 0:02:45.9]} 8. Qa4 {[%clk 0:02:29.2]}
8... Be7 {[%clk 0:02:44.6]} 9. Nge2 {[%clk 0:02:27.7]} 9... O-O {[%clk
0:02:34.3]} 10. O-O {[%clk 0:02:26.3]} 10... Re8 {[%clk 0:02:32.9]} 11. Rd1
{[%clk 0:02:25.3]} 11... Be6 {[%clk 0:02:30.5]} 12. Nf4 {[%clk 0:02:13.5]} 12...
Qd7 {[%clk 0:01:57.8]} 13. Ncxd5 {[%clk 0:02:04]} 13... Nxd5 {[%clk 0:01:51.5]}
14. Nxd5 {[%clk 0:02:01.1]} 14... Bxd5 {[%clk 0:01:43.3]} 15. Bxd5 {[%clk
0:01:55.5]} 15... Qf5 {[%clk 0:01:37]} 16. Be3 {[%clk 0:01:47.3]} 16... Bf6
{[%clk 0:01:31.1]} 17. c3 {[%clk 0:01:44.7]} 17... Rac8 {[%clk 0:01:07.7]} 18.
Qb3 {[%clk 0:01:33.2]} 18... Ne5 {[%clk 0:00:43.6]} 19. Bxa7 {[%clk 0:01:10.4]}
19... Nf3+ {[%clk 0:00:07.6]} 20. Kg2 {[%clk 0:01:06.1]} 20... Ng5 {[%clk
0:00:06.5]} 21. Qxb7 {[%clk 0:01:01.6]} 21... Qh3+ {[%clk 0:00:06.4]} 22. Kg1
{[%clk 0:00:59.5]} 22... Rcd8 {[%clk 0:00:06.2]} 23. Bg2 {[%clk 0:00:51.9]}
23... Qg4 {[%clk 0:00:05.3]} 24. Qb3 {[%clk 0:00:44.4]} 24... Ra8 {[%clk
0:00:03.4]} 25. Be3 {[%clk 0:00:43.1]} 25... Rab8 {[%clk 0:00:02.4]} 26. Qc2
{[%clk 0:00:42.4]} 26... Nf3+ {[%clk 0:00:02.5]} 27. Kh1 {[%clk 0:00:37.9]}
27... Qh5 {[%clk 0:00:02.4]} 28. Bxf3 {[%clk 0:00:35.6]} 28... Qxf3+ {[%clk
0:00:02]} 29. Kg1 {[%clk 0:00:36.1]} 29... h5 {[%clk 0:00:02.6]} 30. Re1 {[%clk
0:00:29.1]} 30... h4 {[%clk 0:00:02.7]} 31. Qe2 {[%clk 0:00:29.4]} 31... Qc6
{[%clk 0:00:02.3]} 32. Rab1 {[%clk 0:00:14.8]} 32... h3 {[%clk 0:00:02.6]} 33.
Qf1 {[%clk 0:00:15.2]} 33... Qe6 {[%clk 0:00:01.7]} 34. Bd2 {[%clk 0:00:13.1]}
34... Qg4 {[%clk 0:00:01.8]} 35. f3 {[%clk 0:00:12.4]} 35... Qd7 {[%clk
0:00:01.6]} 36. Be3 {[%clk 0:00:11.7]} 1-0

[Event "Late-Titled-Tuesday-Blitz-April-23-2024"]
[Site "Chess.com"]
[Date "2024.04.23"]
[Round "8"]
[White "Slovineanu"]
[Black "Russian_berezka"]
[Result "1-0"]
[WhiteElo "2503"]
[BlackElo "2629"]
[TimeControl "180+1"]
[EndTime "15:29:38 PDT"]
[Termination "Slovineanu won on time"]

1. d4 {[%clk 0:02:58.4]} 1... Nf6 {[%clk 0:02:59.3]} 2. Nf3 {[%clk 0:02:57.9]}
2... d5 {[%clk 0:02:59.3]} 3. c4 {[%clk 0:02:56.2]} 3... e6 {[%clk 0:02:59.2]}
4. e3 {[%clk 0:02:56.6]} 4... b6 {[%clk 0:02:53.1]} 5. b3 {[%clk 0:02:55.1]}
5... Bd6 {[%clk 0:02:50.9]} 6. Bd3 {[%clk 0:02:55.1]} 6... Bb7 {[%clk
0:02:50.5]} 7. O-O {[%clk 0:02:55.6]} 7... O-O {[%clk 0:02:46.5]} 8. Bb2 {[%clk
0:02:56.1]} 8... Nbd7 {[%clk 0:02:40.9]} 9. Nc3 {[%clk 0:02:55.2]} 9... a6
{[%clk 0:02:41.2]} 10. Rc1 {[%clk 0:02:53.4]} 10... Ne4 {[%clk 0:02:37.7]} 11.
Ne2 {[%clk 0:02:52.5]} 11... Qe7 {[%clk 0:02:29.1]} 12. a4 {[%clk 0:02:49.7]}
12... f5 {[%clk 0:02:22.4]} 13. Ne5 {[%clk 0:02:48.9]} 13... Nxe5 {[%clk
0:02:09.8]} 14. dxe5 {[%clk 0:02:47.9]} 14... Bc5 {[%clk 0:02:10.3]} 15. Nf4
{[%clk 0:02:41.9]} 15... Rad8 {[%clk 0:01:59.5]} 16. cxd5 {[%clk 0:02:31.3]}
16... exd5 {[%clk 0:02:00.4]} 17. Qe2 {[%clk 0:02:22.9]} 17... a5 {[%clk
0:01:34.1]} 18. Rfd1 {[%clk 0:02:16.3]} 18... Kh8 {[%clk 0:01:31.7]} 19. Ba6
{[%clk 0:01:33.3]} 19... Bxa6 {[%clk 0:01:11.9]} 20. Qxa6 {[%clk 0:01:32.5]}
20... c6 {[%clk 0:01:12.8]} 21. Qe2 {[%clk 0:01:20.7]} 21... Rde8 {[%clk
0:00:57.2]} 22. Rc2 {[%clk 0:01:19.6]} 22... Ng5 {[%clk 0:00:50.8]} 23. Bd4
{[%clk 0:01:15]} 23... Ne6 {[%clk 0:00:25.8]} 24. Nxe6 {[%clk 0:01:14.2]} 24...
Qxe6 {[%clk 0:00:26.7]} 25. Bxc5 {[%clk 0:01:13.7]} 25... bxc5 {[%clk
0:00:27.6]} 26. f4 {[%clk 0:01:12.8]} 26... Rb8 {[%clk 0:00:22.7]} 27. Qd3
{[%clk 0:01:02.2]} 27... Qe7 {[%clk 0:00:18.8]} 28. Rdc1 {[%clk 0:01:01.8]}
28... g5 {[%clk 0:00:07.1]} 29. Rxc5 {[%clk 0:00:58.6]} 29... gxf4 {[%clk
0:00:07.6]} 30. exf4 {[%clk 0:00:58.6]} 30... Rg8 {[%clk 0:00:07.4]} 31. Rxc6
{[%clk 0:00:50.1]} 31... Qb4 {[%clk 0:00:08]} 32. Qxd5 {[%clk 0:00:32.4]} 32...
Qxf4 {[%clk 0:00:07.1]} 33. e6 {[%clk 0:00:21.4]} 33... Rbd8 {[%clk 0:00:06]}
34. Qc4 {[%clk 0:00:15.6]} 34... Qe3+ {[%clk 0:00:04.6]} 35. Kh1 {[%clk
0:00:15.6]} 35... Rd2 {[%clk 0:00:03.3]} 36. Rg1 {[%clk 0:00:12.4]} 1-0

[Event "Late-Titled-Tuesday-Blitz-April-23-2024"]
[Site "Chess.com"]
[Date "2024.04.23"]
[Round "8"]
[White "kalinchick"]
[Black "kripri"]
[Result "0-1"]
[WhiteElo "2435"]
[BlackElo "2343"]
[TimeControl "180+1"]
[EndTime "15:29:39 PDT"]
[Termination "kripri won by resignation"]

1. d4 {[%clk 0:03:00.9]} 1... d5 {[%clk 0:02:51]} 2. g3 {[%clk 0:02:58.1]} 2...
Nf6 {[%clk 0:02:50.7]} 3. Bg2 {[%clk 0:02:58.4]} 3... g6 {[%clk 0:02:50.5]} 4.
Nf3 {[%clk 0:02:59]} 4... Bg7 {[%clk 0:02:51.1]} 5. O-O {[%clk 0:02:59.7]} 5...
O-O {[%clk 0:02:51.8]} 6. b3 {[%clk 0:02:59.7]} 6... c5 {[%clk 0:02:51.7]} 7.
Bb2 {[%clk 0:03:00.6]} 7... Ne4 {[%clk 0:02:49.3]} 8. Nfd2 {[%clk 0:02:50.4]}
8... Bf5 {[%clk 0:02:39.2]} 9. Nxe4 {[%clk 0:02:43.5]} 9... dxe4 {[%clk
0:02:40.1]} 10. e3 {[%clk 0:02:34.7]} 10... Nc6 {[%clk 0:02:34.5]} 11. c3 {[%clk
0:02:34.1]} 11... cxd4 {[%clk 0:02:31.4]} 12. exd4 {[%clk 0:02:27.7]} 12... Qd7
{[%clk 0:02:20.1]} 13. Nd2 {[%clk 0:02:24.5]} 13... e5 {[%clk 0:02:06.8]} 14.
dxe5 {[%clk 0:02:15.1]} 14... e3 {[%clk 0:02:04.5]} 15. fxe3 {[%clk 0:02:11.8]}
15... Nxe5 {[%clk 0:02:03.2]} 16. Ne4 {[%clk 0:02:06.2]} 16... Nd3 {[%clk
0:01:52.4]} 17. Ba3 {[%clk 0:01:52.5]} 17... Rfe8 {[%clk 0:01:43.9]} 18. Nd6
{[%clk 0:01:49.8]} 18... Rxe3 {[%clk 0:01:31]} 19. Rf3 {[%clk 0:01:11.2]} 19...
Re1+ {[%clk 0:01:24.5]} 20. Qxe1 {[%clk 0:01:08.9]} 20... Nxe1 {[%clk
0:01:24.6]} 21. Rxe1 {[%clk 0:01:09.8]} 21... Be6 {[%clk 0:01:20.5]} 22. Rd3
{[%clk 0:01:02.1]} 22... Rb8 {[%clk 0:01:15.4]} 23. c4 {[%clk 0:00:52.1]} 23...
h5 {[%clk 0:01:04.4]} 24. Red1 {[%clk 0:00:49.2]} 24... Qc7 {[%clk 0:00:57.5]}
25. Ne4 {[%clk 0:00:46.4]} 25... Qa5 {[%clk 0:00:44.4]} 26. Bd6 {[%clk
0:00:46.2]} 26... Rc8 {[%clk 0:00:40.4]} 27. a3 {[%clk 0:00:45]} 27... Bf5
{[%clk 0:00:36]} 28. h3 {[%clk 0:00:40.7]} 28... Re8 {[%clk 0:00:32]} 29. Re3
{[%clk 0:00:31.3]} 29... Bxe4 {[%clk 0:00:24]} 30. Rxe4 {[%clk 0:00:29.5]} 30...
Rxe4 {[%clk 0:00:22.9]} 31. Bxe4 {[%clk 0:00:30.4]} 31... Qc3 {[%clk 0:00:22.4]}
32. Bxb7 {[%clk 0:00:19.8]} 32... Qxb3 {[%clk 0:00:22.4]} 33. Bd5 {[%clk
0:00:18.7]} 33... Qxd1+ {[%clk 0:00:22.3]} 34. Kg2 {[%clk 0:00:18.7]} 34... Bd4
{[%clk 0:00:22.3]} 35. Bf4 {[%clk 0:00:13.2]} 35... Qg1+ {[%clk 0:00:21.8]} 36.
Kf3 {[%clk 0:00:13.8]} 36... Qf2+ {[%clk 0:00:19.9]} 37. Ke4 {[%clk 0:00:14]}
37... Bc5 {[%clk 0:00:19.2]} 38. g4 {[%clk 0:00:13.2]} 38... Qd4+ {[%clk
0:00:18.9]} 39. Kf3 {[%clk 0:00:13.5]} 39... hxg4+ {[%clk 0:00:18.8]} 40. hxg4
{[%clk 0:00:14.4]} 40... Qd3+ {[%clk 0:00:18.9]} 41. Kg2 {[%clk 0:00:12.7]}
41... Qe2+ {[%clk 0:00:19.1]} 42. Kg3 {[%clk 0:00:12.3]} 42... Qf2+ {[%clk
0:00:18.7]} 43. Kh3 {[%clk 0:00:11.2]} 43... Qxf4 {[%clk 0:00:19.1]} 0-1

[Event "Late-Titled-Tuesday-Blitz-April-23-2024"]
[Site "Chess.com"]
[Date "2024.04.23"]
[Round "8"]
[White "albi1999"]
[Black "ACollins05"]
[Result "1/2-1/2"]
[WhiteElo "2655"]
[BlackElo "2547"]
[TimeControl "180+1"]
[EndTime "15:29:40 PDT"]
[Termination "Game drawn by repetition"]

1. b3 {[%clk 0:03:00.9]} 1... b5 {[%clk 0:02:57.8]} 2. Bb2 {[%clk 0:03:01.8]}
2... Bb7 {[%clk 0:02:57.4]} 3. e3 {[%clk 0:03:01.8]} 3... a6 {[%clk 0:02:57.4]}
4. Nf3 {[%clk 0:03:02.1]} 4... e6 {[%clk 0:02:56.7]} 5. c4 {[%clk 0:03:00.3]}
5... bxc4 {[%clk 0:02:53.5]} 6. bxc4 {[%clk 0:02:59.1]} 6... c5 {[%clk
0:02:52.9]} 7. Nc3 {[%clk 0:02:58.7]} 7... Nf6 {[%clk 0:02:52.6]} 8. Be2 {[%clk
0:02:57.7]} 8... Be7 {[%clk 0:02:51.1]} 9. O-O {[%clk 0:02:58.1]} 9... O-O
{[%clk 0:02:50.7]} 10. Rb1 {[%clk 0:02:59]} 10... d6 {[%clk 0:02:50.2]} 11. Ba1
{[%clk 0:02:57.2]} 11... Qc7 {[%clk 0:02:49.2]} 12. d3 {[%clk 0:02:52.1]} 12...
Nc6 {[%clk 0:02:49]} 13. Nd2 {[%clk 0:02:48.7]} 13... Rab8 {[%clk 0:02:48.2]}
14. Qa4 {[%clk 0:02:47.3]} 14... Nd7 {[%clk 0:02:39]} 15. a3 {[%clk 0:02:43]}
15... Bf6 {[%clk 0:02:33.9]} 16. Nde4 {[%clk 0:02:40.3]} 16... Be7 {[%clk
0:02:31.9]} 17. Qc2 {[%clk 0:02:39.5]} 17... f5 {[%clk 0:02:29.8]} 18. Nd2
{[%clk 0:02:38.8]} 18... Bf6 {[%clk 0:02:30]} 19. f4 {[%clk 0:02:33.3]} 19...
Ba8 {[%clk 0:02:24.7]} 20. Nb3 {[%clk 0:02:28.1]} 20... Na5 {[%clk 0:02:17.9]}
21. Nxa5 {[%clk 0:02:18.5]} 21... Qxa5 {[%clk 0:02:18.8]} 22. Rb3 {[%clk
0:02:18.8]} 22... Rxb3 {[%clk 0:02:16.1]} 23. Qxb3 {[%clk 0:02:19.7]} 23... Rb8
{[%clk 0:02:15.6]} 24. Qc2 {[%clk 0:02:20.1]} 24... Qxa3 {[%clk 0:02:12.5]} 25.
g4 {[%clk 0:02:10.4]} 25... Rb3 {[%clk 0:01:59.9]} 26. Nb1 {[%clk 0:02:00.7]}
26... Qb4 {[%clk 0:01:52.2]} 27. Nd2 {[%clk 0:01:52.8]} 27... Ra3 {[%clk
0:01:40.8]} 28. Bxf6 {[%clk 0:01:52]} 28... Nxf6 {[%clk 0:01:41.7]} 29. Rb1
{[%clk 0:01:51.4]} 29... Qc3 {[%clk 0:01:12.5]} 30. Rb8+ {[%clk 0:01:38.7]}
30... Kf7 {[%clk 0:01:11.9]} 31. Qxc3 {[%clk 0:01:17.9]} 31... Rxc3 {[%clk
0:01:12.8]} 32. g5 {[%clk 0:01:16.8]} 32... Rc2 {[%clk 0:01:08.2]} 33. gxf6
{[%clk 0:00:44.9]} 33... Rxd2 {[%clk 0:01:06.2]} 34. Kf2 {[%clk 0:00:27.3]}
34... Bc6 {[%clk 0:00:55.3]} 35. fxg7 {[%clk 0:00:26.8]} 35... Kxg7 {[%clk
0:00:56.2]} 36. Rb6 {[%clk 0:00:25.2]} 36... Ba4 {[%clk 0:00:56.8]} 37. Ke1
{[%clk 0:00:25.1]} 37... Rc2 {[%clk 0:00:47.9]} 38. Rxa6 {[%clk 0:00:21.7]}
38... Bb3 {[%clk 0:00:41.6]} 39. Rxd6 {[%clk 0:00:19.4]} 39... Kf6 {[%clk
0:00:41.6]} 40. Rb6 {[%clk 0:00:18.7]} 40... Ba4 {[%clk 0:00:37.6]} 41. Ra6
{[%clk 0:00:18.7]} 41... Bb3 {[%clk 0:00:35.4]} 42. Ra3 {[%clk 0:00:18.7]} 42...
Rb2 {[%clk 0:00:31.2]} 43. Ra5 {[%clk 0:00:17.8]} 43... Rb1+ {[%clk 0:00:30.7]}
44. Kf2 {[%clk 0:00:17.7]} 44... Rh1 {[%clk 0:00:27.5]} 45. Kg3 {[%clk
0:00:16.9]} 45... Rg1+ {[%clk 0:00:27.1]} 46. Kf2 {[%clk 0:00:16.2]} 46... Rh1
{[%clk 0:00:27.3]} 47. Kg2 {[%clk 0:00:16.7]} 47... Re1 {[%clk 0:00:26.1]} 48.
Kf2 {[%clk 0:00:10]} 48... Rh1 {[%clk 0:00:25.7]} 1/2-1/2

[Event "Late-Titled-Tuesday-Blitz-April-23-2024"]
[Site "Chess.com"]
[Date "2024.04.23"]
[Round "8"]
[White "Fins0905"]
[Black "subham777"]
[Result "0-1"]
[WhiteElo "2746"]
[BlackElo "2548"]
[TimeControl "180+1"]
[EndTime "15:29:40 PDT"]
[Termination "subham777 won by resignation"]

1. c4 {[%clk 0:02:57.1]} 1... e6 {[%clk 0:02:58.9]} 2. d4 {[%clk 0:02:54.3]}
2... d5 {[%clk 0:02:59]} 3. Nc3 {[%clk 0:02:54.5]} 3... Nf6 {[%clk 0:02:59.3]}
4. cxd5 {[%clk 0:02:54.7]} 4... exd5 {[%clk 0:02:59.5]} 5. Bg5 {[%clk
0:02:54.8]} 5... c6 {[%clk 0:02:59.3]} 6. e3 {[%clk 0:02:54.8]} 6... Bd6 {[%clk
0:02:59.4]} 7. Bd3 {[%clk 0:02:53.5]} 7... O-O {[%clk 0:02:59.6]} 8. Nge2 {[%clk
0:02:53.1]} 8... h6 {[%clk 0:03:00]} 9. Bh4 {[%clk 0:02:52.2]} 9... a5 {[%clk
0:03:00.7]} 10. h3 {[%clk 0:02:52.1]} 10... Na6 {[%clk 0:03:00.6]} 11. O-O
{[%clk 0:02:47.1]} 11... Re8 {[%clk 0:02:59]} 12. Rc1 {[%clk 0:02:44.9]} 12...
Nc7 {[%clk 0:02:58.2]} 13. Qc2 {[%clk 0:02:41.1]} 13... Ne6 {[%clk 0:02:55]} 14.
Bf5 {[%clk 0:02:26.3]} 14... Ng5 {[%clk 0:02:33]} 15. f4 {[%clk 0:02:13.4]}
15... Bxf5 {[%clk 0:02:07.7]} 16. Qxf5 {[%clk 0:02:14.3]} 16... g6 {[%clk
0:01:36.4]} 17. Qd3 {[%clk 0:01:43.9]} 17... Nge4 {[%clk 0:01:17.1]} 18. Nxe4
{[%clk 0:01:42.7]} 18... dxe4 {[%clk 0:01:18]} 19. Qb3 {[%clk 0:01:35.3]} 19...
Rb8 {[%clk 0:01:02.6]} 20. Nc3 {[%clk 0:01:29.4]} 20... Be7 {[%clk 0:00:53.9]}
21. Qc2 {[%clk 0:01:24.3]} 21... Nd5 {[%clk 0:00:46.3]} 22. Bxe7 {[%clk
0:01:18.6]} 22... Rxe7 {[%clk 0:00:45.1]} 23. Nxd5 {[%clk 0:01:10]} 23... Qxd5
{[%clk 0:00:43.1]} 24. a3 {[%clk 0:01:09.4]} 24... f5 {[%clk 0:00:26.6]} 25. Qd2
{[%clk 0:01:08.4]} 25... b6 {[%clk 0:00:25.1]} 26. Qe2 {[%clk 0:01:02.7]} 26...
Rc7 {[%clk 0:00:22.7]} 27. Rfd1 {[%clk 0:00:56]} 27... Rd8 {[%clk 0:00:23]} 28.
Qa6 {[%clk 0:00:55.2]} 28... Rb8 {[%clk 0:00:18.2]} 29. Kh2 {[%clk 0:00:55.1]}
29... Qb3 {[%clk 0:00:17.9]} 30. Rd2 {[%clk 0:00:53.5]} 30... Qxe3 {[%clk
0:00:17.5]} 31. Rcc2 {[%clk 0:00:41.7]} 31... Qxf4+ {[%clk 0:00:17.7]} 32. g3
{[%clk 0:00:42.4]} 32... Qd6 {[%clk 0:00:15.5]} 33. Qc4+ {[%clk 0:00:42.6]}
33... Kg7 {[%clk 0:00:14.1]} 34. d5 {[%clk 0:00:42.9]} 34... Rd8 {[%clk
0:00:12.1]} 35. Qc3+ {[%clk 0:00:40.1]} 35... Qf6 {[%clk 0:00:08.9]} 36. Qb3
{[%clk 0:00:30.1]} 36... Rcd7 {[%clk 0:00:06.5]} 37. Rxc6 {[%clk 0:00:24.4]}
37... Qxc6 {[%clk 0:00:05.3]} 38. dxc6 {[%clk 0:00:25.3]} 38... Rxd2+ {[%clk
0:00:05.8]} 39. Kg1 {[%clk 0:00:26]} 39... Rd1+ {[%clk 0:00:06.2]} 40. Kf2
{[%clk 0:00:26.4]} 40... R8d2+ {[%clk 0:00:06.7]} 41. Ke3 {[%clk 0:00:23.5]}
41... Rd3+ {[%clk 0:00:07.1]} 42. Ke2 {[%clk 0:00:21.4]} 42... Rxb3 {[%clk
0:00:05.1]} 43. Kxd1 {[%clk 0:00:21.9]} 43... Rb5 {[%clk 0:00:05.6]} 44. b4
{[%clk 0:00:21.8]} 44... axb4 {[%clk 0:00:05.7]} 45. c7 {[%clk 0:00:22]} 45...
Rc5 {[%clk 0:00:06.1]} 0-1